bitfinex/quotes_ETHUSD_20241003
["timestamp","ask_amount","ask_price","bid_price","bid_amount"]
[1727954281509,5.01311,2367.6,2367.2,4.22439]
[1727954281715,4.22371,2367.6,2367.2,4.22439]
[1727954281897,4.22345,2367.8,2367.4,0.8331]
[1727954282082,8.1514,2368.0,2367.5,4.00744692]
[1727954282349,11.61307,2368.0,2367.5,8.71520161]
[1727954282547,4.22288,2368.1,2367.5,8.71520161]
[1727954282548,4.22286,2368.1,2367.7,4.22342]
[1727954282736,4.22322,2367.9,2367.6,0.7661]
[1727954283100,4.22337,2367.8,2367.4,4.22399]
[1727954283286,4.22337,2367.8,2367.3,8.99177692]
[1727954283287,4.22358,2367.7,2367.3,8.99177692]
[1727954283930,4.22358,2367.7,2367.3,4.98433]
[1727954284133,4.22387,2367.5,2367.1,4.22455]
[1727954284288,4.22404,2367.4,2367.0,5.04741]
[1727954284928,4.22408,2367.4,2367.0,5.04744]
[1727954285137,5.023,2367.5,2367.1,4.22457]
[1727954285338,4.22425,2367.3,2366.8,5.01537]
[1727954285546,8.4486,2367.3,2366.8,5.01537]
[1727954285750,8.4486,2367.3,2366.9,4.2249]
[1727954285751,4.22425,2367.3,2366.9,4.2249]
[1727954286109,4.22452,2367.2,2366.8,5.01537]
[1727954286327,0.7808,2367.8,2367.1,4.00744692]
[1727954286691,0.7808,2367.8,2367.3,4.22412]
[1727954286859,0.7808,2367.8,2367.4,4.22395]
[1727954287161,5.0037,2368.1,2367.7,8.23082692]
[1727954287516,5.00335,2368.3,2367.9,4.22306]
[1727954287809,4.22264,2368.2,2367.9,0.8031]
[1727954288016,4.22291,2368.1,2367.7,5.02658]
[1727954288435,4.22291,2368.1,2367.5,8.23126692]
[1727954288436,4.22316,2367.9,2367.5,9.03436692]
[1727954288841,4.2234,2367.8,2367.4,4.22395]
[1727954289207,4.2234,2367.8,2367.3,9.02149692]
[1727954289840,4.2234,2367.8,2367.4,4.22404]
[1727954290148,4.2234,2367.8,2367.4,4.22403]
[1727954290940,4.97449,2367.9,2367.5,4.22382]
[1727954291816,4.97449,2367.9,2367.4,4.22403]
[1727954292138,4.97449,2367.9,2367.4,8.44787]
[1727954292513,4.97449,2367.9,2367.4,4.22391]
[1727954292736,4.22343,2367.8,2367.4,4.22391]
[1727954295504,5.04823,2368.2,2367.7,9.02603692]
[1727954295703,4.22289,2368.1,2367.7,0.7951]
[1727954295944,4.22289,2368.1,2367.6,4.2236]
[1727954295945,8.44583,2368.1,2367.6,4.2236]
[1727954296157,8.44583,2368.1,2367.2,4.22436]
[1727954296158,0.927143,2368.1,2367.3,0.7694]
[1727954296458,4.22362,2367.7,2367.2,4.22436]
[1727954296605,4.22368,2367.6,2367.2,4.22429]
[1727954296805,4.22357,2367.7,2367.2,8.44858]
[1727954297012,0.422362,2367.7,2367.3,4.22407]
[1727954297238,0.422362,2367.7,2367.2,4.22429]
[1727954297461,4.645982,2367.7,2367.2,4.22429]
[1727954297980,0.7979,2368.0,2367.4,4.22403]
[1727954298147,0.7979,2368.0,2367.3,4.22411]
[1727954298148,4.22344,2367.8,2367.3,4.22411]
[1727954299342,4.22344,2367.8,2367.4,4.22401]
[1727954299642,0.7979,2368.0,2367.6,8.23103692]
[1727954299643,5.02094,2368.0,2367.6,8.23103692]
[1727954299810,4.22317,2367.9,2367.5,4.22385]
[1727954301431,5.02089,2368.0,2367.6,4.22366]
[1727954301810,4.22299,2368.0,2367.5,4.22385]
[1727954302173,4.22299,2368.0,2367.6,4.22361]
[1727954302757,8.44606,2368.0,2367.6,4.22361]
[1727954303051,8.44607,2368.0,2367.6,4.22361]
[1727954303274,4.22299,2368.0,2367.6,4.22361]
[1727954303413,8.44605,2368.0,2367.6,4.22361]
[1727954303605,4.22299,2368.0,2367.6,4.22361]
[1727954303846,0.7662,2367.8,2367.4,0.8251]
[1727954304061,4.98964,2367.8,2367.4,0.8251]
[1727954304347,4.22344,2367.8,2367.4,5.04912]
[1727954304550,4.9891,2368.1,2367.5,4.30833483]
[1727954304759,8.78070972,2368.6,2367.7,4.2234]
[1727954304760,4.22258,2368.3,2367.7,4.2234]
[1727954304916,4.2227,2368.2,2367.8,5.00135]
[1727954305124,6.450038,2368.3,2367.8,4.87000955]
[1727954305125,0.7662,2368.3,2367.8,4.87000955]
[1727954305731,0.7662,2368.3,2367.0,3.0]
[1727954305732,4.98799,2368.7,2368.2,4.2225]
[1727954305750,4.22198,2368.6,2368.2,4.2225]
[1727954306059,4.22208,2368.5,2368.1,4.22272]
[1727954306265,0.498818,2368.6,2368.0,4.78554692]
[1727954306469,0.498818,2368.6,2368.0,0.7781]
[1727954306756,4.22242,2368.4,2368.0,5.00105]
[1727954306953,0.4721238,2368.4,2368.1,4.22278]
[1727954307248,4.22218,2368.5,2368.1,4.22277]
[1727954307755,4.22228,2368.4,2368.0,4.22295]
[1727954307928,4.22246,2368.3,2367.9,7.22313]
[1727954308342,5.819144,2368.3,2367.9,4.22313]
[1727954308653,4.97467,2368.3,2367.9,4.22313]
[1727954309214,0.7522,2368.3,2367.9,4.22313]
[1727954309416,4.97464,2368.3,2367.9,4.22313]
[1727954310153,0.7522,2368.3,2367.9,4.22313]
[1727954311151,4.97469,2368.3,2367.9,4.22313]
[1727954311362,5.472143,2368.3,2367.9,4.22313]
[1727954313056,4.22271,2368.2,2367.8,5.03512]
[1727954313549,5.472143,2368.3,2367.9,4.22313]
[1727954313850,4.22229,2368.4,2368.0,4.2229]
[1727954315139,4.22244,2368.3,2368.0,4.2229]
[1727954315454,4.22244,2368.3,2367.9,4.22312]
[1727954315664,4.22244,2368.3,2367.8,9.04262692]
[1727954315665,0.7618,2368.1,2367.8,4.22328]
[1727954316113,4.98466,2368.1,2367.6,5.02151]
[1727954316316,4.223,2368.0,2367.6,5.02165]
[1727954317422,4.22323,2367.9,2367.5,4.22381]
[1727954319258,0.7861,2367.8,2367.5,4.22381]
[1727954322621,0.7861,2367.8,2367.5,4.22377]
[1727954323050,0.8191,2368.0,2367.7,4.22343]
[1727954323249,8.44549,2368.2,2367.8,4.22325]
[1727954323454,4.2228,2368.1,2367.7,4.22343]
[1727954323642,4.22311,2368.0,2367.5,5.01884]
[1727954323849,4.22315,2367.9,2367.5,5.01884]
[1727954324325,4.22315,2367.9,2367.5,9.24258]
[1727954325561,4.22315,2367.9,2367.5,5.01884]
[1727954326062,4.22315,2367.9,2367.5,4.22374]
[1727954326263,5.150546,2367.9,2367.5,4.22374]
[1727954326762,5.150546,2367.9,2367.5,4.22383]
[1727954327063,4.2234,2367.8,2367.4,4.224]
[1727954327961,4.2234,2367.8,2367.3,5.00404]
[1727954328167,4.22357,2367.7,2367.3,0.7799]
[1727954328318,4.99997,2367.7,2367.3,0.7799]
[1727954329119,0.922337,2367.6,2367.1,0.7773]
[1727954329363,0.7884,2367.3,2366.9,5.00216]
[1727954330534,0.7884,2367.3,2367.0,4.22474]
[1727954331662,0.7884,2367.3,2366.9,4.78474692]
[1727954331868,5.0127,2367.3,2366.9,0.7773]
[1727954332371,5.51397,2367.3,2366.9,0.7773]
[1727954332722,5.51397,2367.3,2366.9,5.00222]
[1727954333951,5.51397,2367.3,2366.9,4.22492]
[1727954334184,4.22451,2367.2,2366.7,9.00540692]
[1727954334385,5.198358,2367.2,2366.7,4.99796]
[1727954335099,5.198358,2367.2,2366.8,4.22511]
[1727954336405,4.22475,2367.0,2366.7,0.7727]
[1727954336564,5.01195,2367.0,2366.6,4.22537]
[1727954336897,0.7872,2367.0,2366.7,4.22519]
[1727954337298,4.22515,2366.8,2366.5,4.00744692]
[1727954337599,4.22506,2366.9,2366.5,4.22564]
[1727954337806,4.22506,2366.9,2366.3,4.77914692]
[1727954338114,4.22522,2366.8,2366.4,4.22581]
[1727954338409,0.7872,2367.0,2366.4,4.22574]
[1727954338612,4.22496,2366.9,2366.5,4.22563]
[1727954338763,4.22496,2366.9,2366.3,4.77914692]
[1727954338764,5.148646,2366.9,2366.3,4.77914692]
[1727954338963,4.22514,2366.8,2366.4,4.22582]
[1727954339185,4.22514,2366.8,2366.4,4.22575]
[1727954339797,4.22514,2366.8,2366.4,4.22573]
[1727954340299,8.45006,2366.9,2366.4,8.45145]
[1727954340506,4.22496,2366.9,2366.4,8.45145]
[1727954340807,4.22537,2366.7,2366.3,8.23343692]
[1727954341520,5.03935,2366.8,2366.4,4.22574]
[1727954342488,4.22536,2366.7,2366.3,4.22596]
[1727954342707,4.22549,2366.6,2366.2,4.2261]
[1727954342920,4.22549,2366.6,2366.1,9.01210692]
[1727954343124,0.7768,2366.5,2366.2,4.22616]
[1727954343414,0.7768,2366.5,2366.1,4.78584692]
[1727954343616,5.00247,2366.5,2366.1,8.23371692]
[1727954343785,0.7768,2366.5,2366.1,4.22627]
[1727954344131,5.00252,2366.5,2366.1,4.22627]
[1727954344335,4.22593,2366.4,2365.9,9.27644]
[1727954344556,0.7768,2366.5,2366.1,4.22624]
[1727954344693,4.22543,2366.7,2366.3,4.81644692]
[1727954344694,0.78,2366.7,2366.3,4.81644692]
[1727954345018,5.0053,2366.7,2366.3,5.03492]
[1727954345223,5.0053,2366.7,2366.3,4.22592]
[1727954345596,4.22552,2366.6,2366.2,4.22618]
[1727954346390,5.00532,2366.7,2366.2,4.22618]
[1727954346830,9.23072,2366.7,2366.2,4.22618]
[1727954347040,10.153792,2366.7,2366.2,4.22618]
[1727954347197,1.703072,2366.7,2366.3,4.22591]
[1727954347388,4.9762,2366.5,2366.0,4.2265]
[1727954347595,4.22594,2366.4,2365.9,4.00744692]
[1727954347842,4.22609,2366.3,2365.9,8.23413692]
[1727954347992,0.7504,2366.2,2365.9,4.22669]
[1727954348200,0.7504,2366.2,2366.0,4.2265]
[1727954348394,0.7504,2366.4,2366.2,4.2261]
[1727954348591,4.97603,2366.6,2366.2,4.2261]
[1727954349853,0.7504,2366.6,2366.2,4.2261]
[1727954350350,4.97596,2366.6,2366.2,4.2261]
[1727954350853,4.22565,2366.5,2366.1,5.02138]
[1727954351556,0.7504,2366.6,2366.1,4.22628]
[1727954351709,4.22564,2366.5,2366.1,4.22628]
[1727954352062,4.22589,2366.4,2365.9,9.02389692]
[1727954352257,4.9976,2366.3,2365.9,8.23409692]
[1727954353731,0.7716,2366.3,2366.0,4.22651]
[1727954354240,0.7716,2366.3,2365.9,12.46068692]
[1727954354439,0.7716,2366.3,2366.0,4.2265]
[1727954355013,7.39,2366.7,2366.0,4.2265]
[1727954355014,0.7786,2366.5,2366.1,4.00744692]
[1727954355220,5.00433,2366.5,2366.1,8.23380692]
[1727954355513,9.23011,2366.5,2366.1,8.23380692]
[1727954356866,4.22583,2366.4,2366.1,4.22636]
[1727954360283,5.00428,2366.5,2366.1,4.22627]
[1727954361019,4.22585,2366.4,2366.0,4.22646]
[1727954361221,0.8014,2366.3,2365.8,0.1160746]
[1727954361563,0.8014,2365.9,2365.8,0.1160746]
[1727954362325,5.02812,2365.9,2365.8,0.1160746]
[1727954363342,0.8014,2365.9,2365.8,0.1160746]
[1727954363928,0.8294,2366.1,2365.8,0.1160746]
[1727954364425,0.8294,2366.1,2365.8,0.8925746]
[1727954364574,0.8294,2366.1,2365.8,0.1160746]
[1727954365726,5.05576,2366.1,2365.8,0.1160746]
[1727954366497,0.8294,2366.1,2365.8,4.3429646]
[1727954366698,5.05578,2366.1,2365.8,0.1160746]
[1727954367212,4.22654,2366.0,2365.8,0.1160746]
[1727954367814,4.22672,2365.9,2365.8,0.1160746]
[1727954368014,5.03892,2365.9,2365.8,0.1160746]
[1727954369319,8.03892,2365.9,2365.8,0.1160746]
[1727954370778,0.8122,2365.9,2365.8,0.1160746]
[1727954371093,0.7791,2366.1,2365.8,4.3429246]
[1727954371280,4.22672,2365.9,2365.8,0.1160746]
[1727954371793,4.99192,2365.9,2365.8,0.1160746]
[1727954372527,7.99192,2365.9,2365.8,0.1160746]
[1727954376471,8.54192,2365.9,2365.8,0.1160746]
[1727954376756,10.26956649,2365.9,2365.8,0.1160746]
[1727954376950,9.71956649,2365.9,2365.8,0.1160746]
[1727954377351,10.26956649,2365.9,2365.8,0.1160746]
[1727954377647,14.27701341,2365.9,2365.8,0.1160746]
[1727954380771,10.26956649,2365.9,2365.8,0.1160746]
[1727954381312,9.71956649,2365.9,2365.8,0.1160746]
[1727954383141,6.71956649,2365.9,2365.8,0.1160746]
[1727954383450,4.22672,2365.9,2365.8,0.1160746]
[1727954383821,4.22658,2366.0,2365.8,0.1160746]
[1727954384470,4.22672,2365.9,2365.8,0.1160746]
[1727954385942,8.00712,2365.9,2365.8,0.1160746]
[1727954386128,9.63123469,2365.9,2365.8,0.1160746]
[1727954387179,5.00712,2365.9,2365.8,0.1160746]
[1727954387335,4.22672,2365.9,2365.8,0.1160746]
[1727954389754,5.05542,2365.9,2365.8,0.1160746]
[1727954390068,8.05542,2365.9,2365.8,0.1160746]
[1727954391267,5.05542,2365.9,2365.8,0.1160746]
[1727954391476,4.22672,2365.9,2365.8,0.1160746]
[1727954392383,5.15205,2365.9,2365.8,0.1160746]
[1727954392872,4.22672,2365.9,2365.8,0.8930746]
[1727954394880,4.22658,2366.0,2365.8,0.8930746]
[1727954395081,4.22629,2366.2,2365.8,5.1199046]
[1727954395266,4.22595,2366.4,2365.9,4.00744692]
[1727954395576,4.22595,2366.4,2366.0,5.04427]
[1727954395791,11.61536,2366.7,2366.3,4.00744692]
[1727954395952,11.61536,2366.7,2366.3,9.13856661]
[1727954396295,11.61536,2366.7,2366.3,4.00744692]
[1727954396985,4.2255,2366.6,2366.4,0.8253]
[1727954397182,4.22484,2367.0,2366.6,5.05072]
[1727954397359,4.22471,2367.1,2366.7,4.00744692]
[1727954397551,4.22477,2367.0,2366.7,4.00744692]
[1727954397747,4.22496,2366.9,2366.7,4.00744692]
[1727954398104,4.22496,2366.9,2366.6,0.8253]
[1727954398105,4.22525,2366.8,2366.6,0.8253]
[1727954398305,4.22496,2366.9,2366.6,0.8253]
[1727954398655,4.22518,2366.8,2366.6,0.8253]
[1727954399051,4.22529,2366.7,2366.6,0.8253]
[1727954399503,4.22518,2366.8,2366.6,0.8253]
[1727954400001,8.45043,2366.8,2366.6,0.8253]
[1727954400506,4.22529,2366.7,2366.6,0.8253]
[1727954400696,4.22529,2366.7,2366.3,0.8212]
[1727954400697,4.22553,2366.6,2366.3,0.8212]
[1727954400859,4.22571,2366.5,2366.3,0.8212]
[1727954401458,4.22571,2366.5,2366.1,5.04528]
[1727954402504,4.22553,2366.6,2366.1,5.04528]
[1727954403111,5.00023,2366.7,2366.2,4.22607]
[1727954403261,0.7748,2366.7,2366.2,8.45216]
[1727954403463,4.2254,2366.7,2366.3,4.226]
[1727954403899,4.22547,2366.6,2366.2,4.22607]
[1727954404211,4.22521,2366.8,2366.4,4.22582]
[1727954404411,4.22507,2366.9,2366.5,4.00744692]
[1727954404703,4.22507,2366.9,2366.6,0.7884]
[1727954404900,8.04472,2367.1,2366.6,0.7884]
[1727954405100,4.22472,2367.1,2366.6,0.7884]
[1727954405298,4.22478,2367.0,2366.6,5.01385]
[1727954405513,0.8188,2367.3,2366.7,4.00744692]
[1727954405698,0.8188,2367.3,2366.9,4.00744692]
[1727954405699,4.22441,2367.2,2366.9,4.00744692]
[1727954406094,4.22441,2367.2,2366.8,5.04811]
[1727954406295,4.22441,2367.2,2366.8,0.823]
[1727954406874,4.22468,2367.1,2366.8,0.823]
[1727954407076,4.22441,2367.2,2366.8,0.823]
[1727954407276,4.22405,2367.4,2366.9,8.23222692]
[1727954407478,4.22405,2367.4,2367.0,5.04967]
[1727954407671,15.83782,2367.5,2367.0,5.04967]
[1727954408097,11.61387,2367.5,2367.0,0.825]
[1727954408303,4.22405,2367.4,2367.0,0.825]
[1727954409293,4.2243,2367.3,2367.0,0.825]
[1727954409710,7.39,2367.5,2367.0,0.825]
[1727954410019,4.21845436,2367.4,2367.0,5.04974]
[1727954410166,7.39,2367.5,2367.1,5.33564361]
[1727954410369,4.2239,2367.5,2367.1,8.23200692]
[1727954410670,4.2239,2367.5,2367.1,4.00744692]
[1727954411776,4.22404,2367.4,2367.1,4.00744692]
[1727954414173,4.22437,2367.3,2367.0,0.825]
[1727954414418,4.22443,2367.2,2367.0,0.825]
[1727954414601,4.22443,2367.2,2366.2,10.44]
[1727954414602,4.22475,2367.0,2366.5,4.22556]
[1727954414772,4.22438,2367.3,2366.8,4.22504]
[1727954415120,4.22448,2367.2,2366.8,5.12942869]
[1727954415290,4.22463,2367.1,2366.6,9.04427692]
[1727954415912,4.22463,2367.1,2366.6,9.04422692]
[1727954416109,8.44938,2367.1,2366.6,9.04422692]
[1727954416315,4.22529,2366.7,2366.3,0.8317]
[1727954416599,4.2256,2366.6,2366.3,0.8317]
[1727954417931,4.22578,2366.5,2366.3,0.8317]
[1727954418134,4.22582,2366.4,2366.3,0.8317]
[1727954418338,4.22582,2366.4,2366.1,0.77247553]
[1727954418728,4.22578,2366.5,2366.2,0.97871625]
[1727954418937,4.22578,2366.5,2366.2,4.98616317]
[1727954419129,4.22547,2366.6,2366.2,9.21231317]
[1727954419326,4.22573,2366.5,2366.2,4.98616317]
[1727954419648,4.22547,2366.6,2366.2,4.98616317]
[1727954420030,4.22547,2366.6,2366.2,9.21231317]
[1727954420237,4.22547,2366.6,2366.2,4.98616317]
[1727954420565,4.22549,2366.6,2366.2,4.98616317]
[1727954420768,4.22549,2366.6,2366.2,0.97871625]
[1727954421100,8.45107,2366.6,2366.2,0.97871625]
[1727954421287,4.22566,2366.5,2366.2,0.97871625]
[1727954421490,4.22548,2366.6,2366.2,0.97871625]
[1727954421709,8.45109,2366.6,2366.2,5.20487625]
[1727954421989,4.22548,2366.6,2366.2,5.20487625]
[1727954424000,4.22548,2366.6,2366.3,0.59773518]
[1727954424495,8.45106,2366.6,2366.3,0.59773518]
[1727954425051,8.45106,2366.6,2366.2,4.98616317]
[1727954425399,4.22548,2366.6,2366.2,9.21233317]
[1727954425926,8.45107,2366.6,2366.2,9.21233317]
[1727954426092,4.22548,2366.6,2366.2,9.21233317]
[1727954426530,4.22548,2366.6,2366.2,9.21227317]
[1727954428302,4.22548,2366.6,2366.3,0.7662]
[1727954428501,4.22528,2366.8,2366.3,0.7662]
[1727954428502,4.22527,2366.8,2366.3,0.7662]
[1727954428832,4.22519,2366.8,2366.4,8.23315692]
[1727954430242,8.45042,2366.8,2366.4,8.23315692]
[1727954430460,3.0,2367.1,2366.6,8.23290692]
[1727954430674,3.0,2367.1,2366.7,4.22528]
[1727954430675,7.22465,2367.1,2366.7,4.22528]
[1727954430941,4.22465,2367.1,2366.7,1.32503869]
[1727954431156,4.22478,2367.0,2366.7,1.32503869]
[1727954431501,4.22503,2366.9,2366.7,1.32503869]
[1727954431703,4.22503,2366.9,2366.5,5.01783]
[1727954432185,4.22512,2366.8,2366.5,0.2922]
[1727954432345,4.22541,2366.7,2366.5,0.2922]
[1727954432544,4.22491,2367.0,2366.5,0.2922]
[1727954432886,4.22502,2366.9,2366.5,4.51782]
[1727954433373,4.22502,2366.9,2366.5,0.2922]
[1727954433535,4.22515,2366.8,2366.5,0.2922]
[1727954433731,4.22502,2366.9,2366.5,0.2922]
[1727954433937,4.22502,2366.9,2366.5,4.51783]
[1727954434448,8.45006,2366.9,2366.5,4.51783]
[1727954434632,4.22502,2366.9,2366.5,8.74341]
[1727954434832,4.22502,2366.9,2366.5,4.51778]
[1727954435666,4.22502,2366.9,2366.5,4.51775]
[1727954436072,4.22554,2366.6,2366.0,0.7945]
[1727954436313,4.22554,2366.6,2366.0,5.02104]
[1727954436486,8.45114,2366.6,2366.1,4.22627]
[1727954436675,4.22554,2366.6,2366.1,8.23371692]
[1727954437134,8.45111,2366.6,2366.1,8.23371692]
[1727954437341,5.02027,2366.8,2366.2,4.22617]
[1727954437566,0.8022,2367.1,2366.5,4.00744692]
[1727954437747,4.22502,2366.9,2366.5,4.00744692]
[1727954438130,4.22536,2366.7,2366.3,0.7737]
[1727954438335,4.22536,2366.7,2366.1,4.00744692]
[1727954438336,4.22574,2366.5,2366.1,4.77304692]
[1727954439248,4.22583,2366.4,2366.1,0.7656]
[1727954439609,0.845157,2366.4,2365.9,0.7656]
[1727954439811,0.845157,2366.4,2365.8,0.1160746]
[1727954439812,4.22656,2366.0,2365.8,0.1160746]
[1727954440715,8.45324,2366.0,2365.8,0.1160746]
[1727954441261,4.22672,2365.9,2365.8,0.1160746]
[1727954444619,5.885248,2365.9,2365.8,0.1160746]
[1727954446158,9.435248,2365.9,2365.8,0.1160746]
[1727954446490,4.22863,2364.9,2364.6,0.7816]
[1727954446612,4.22766,2365.4,2364.6,0.7816]
[1727954446613,5.0064,2365.1,2364.6,0.7816]
[1727954446847,5.0064,2365.1,2364.7,4.22886]
[1727954447069,4.2284,2365.0,2364.6,1.28267]
[1727954447366,4.2283,2365.1,2364.6,1.28267]
[1727954447367,4.22823,2365.1,2364.6,5.29011692]
[1727954447653,5.00598,2365.3,2364.8,4.22867]
[1727954447884,5.00598,2365.3,2364.8,5.55334369]
[1727954448037,7.00744692,2365.8,2364.9,4.22838]
[1727954448038,5.0057,2365.5,2364.9,4.22838]
[1727954448239,5.0057,2365.5,2365.0,4.9922]
[1727954448240,4.22762,2365.4,2365.0,4.9922]
[1727954448754,8.00554,2365.5,2365.0,0.7639]
[1727954449050,4.22731,2365.6,2365.0,5.7558759]
[1727954449051,4.2273,2365.6,2365.0,5.7558759]
[1727954449255,4.22744,2365.5,2365.0,13.31235521]
[1727954449462,4.22744,2365.5,2365.0,4.9921]
[1727954449751,4.22744,2365.5,2365.0,9.22035]
[1727954449989,0.7968,2365.3,2364.8,0.772]
[1727954450173,4.22842,2365.0,2364.6,0.8226]
[1727954450456,4.22808,2365.2,2364.6,1.327769]
[1727954450608,4.22808,2365.2,2364.7,4.2287]
[1727954450815,4.22808,2365.2,2364.7,8.45746]
[1727954451019,4.22808,2365.2,2364.8,4.22865]
[1727954451207,4.22808,2365.2,2364.6,0.8226]
[1727954451208,8.4562,2365.2,2364.7,4.22884]
[1727954451407,4.22808,2365.2,2364.7,8.45763]
[1727954451655,4.22808,2365.2,2364.7,4.22879]
[1727954451857,4.22808,2365.2,2364.8,4.22866]
[1727954452181,4.22807,2365.2,2364.8,4.00744692]
[1727954452347,4.2274,2365.6,2365.1,4.22805]
[1727954452666,8.45475,2365.6,2365.1,4.22805]
[1727954452967,4.22744,2365.5,2365.0,8.23564692]
[1727954453119,4.22735,2365.6,2365.1,4.22812]
[1727954453628,0.7618,2365.9,2365.3,0.7555]
[1727954453838,4.22691,2365.8,2365.4,4.22761]
[1727954454245,4.22691,2365.8,2365.3,4.98321]
[1727954454774,8.45393,2365.8,2365.3,4.98321]
[1727954455058,8.45396,2365.8,2365.3,4.98319]
[1727954455265,4.22691,2365.8,2365.3,4.98319]
[1727954456066,4.98852,2365.9,2365.5,4.22741]
[1727954456278,4.22642,2366.1,2365.7,4.22697]
[1727954456279,0.7712,2366.1,2365.7,4.22697]
[1727954456566,4.22617,2366.3,2365.8,5.01832]
[1727954456567,5.01067,2366.3,2365.8,5.01832]
[1727954456749,4.22623,2366.2,2365.8,5.01832]
[1727954457065,4.22623,2366.2,2365.8,5.01836]
[1727954457293,5.01067,2366.3,2365.8,5.01836]
[1727954457294,4.2255,2366.6,2366.1,4.22635]
[1727954457426,4.9844,2366.8,2366.4,4.22579]
[1727954457765,4.00744692,2367.3,2366.2,4.00744692]
[1727954457766,4.22565,2366.5,2366.2,4.00744692]
[1727954458066,4.22565,2366.5,2366.1,4.22625]
[1727954458454,4.22548,2366.6,2366.2,4.22615]
[1727954458667,4.22548,2366.6,2366.1,4.22625]
[1727954458864,8.45087,2366.7,2366.2,4.2261]
[1727954459092,4.22555,2366.6,2366.1,8.45252]
[1727954459246,4.22555,2366.6,2366.1,4.22625]
[1727954459444,4.22555,2366.6,2366.1,8.45252]
[1727954459742,4.22557,2366.6,2366.1,4.22625]
[1727954460147,4.22557,2366.6,2366.1,8.45248]
[1727954460766,4.22542,2366.7,2366.1,8.45248]
[1727954460767,4.22542,2366.7,2366.3,4.226]
[1727954461192,8.45086,2366.7,2366.2,4.22617]
[1727954462281,4.22542,2366.7,2366.2,4.22617]
[1727954462486,4.2254,2366.7,2366.1,1.32518269]
[1727954462654,4.22547,2366.6,2366.2,4.22616]
[1727954463546,4.2254,2366.7,2366.2,8.45222]
[1727954463785,4.2254,2366.7,2366.2,8.45214]
[1727954463999,4.22515,2366.8,2366.4,4.22578]
[1727954464199,4.98413,2366.9,2366.4,9.05022692]
[1727954464500,9.20919,2366.9,2366.4,9.05022692]
[1727954464686,6.944049,2366.9,2366.4,0.817]
[1727954464894,4.2253,2366.7,2366.4,0.817]
[1727954465565,4.22501,2366.9,2366.4,5.04271]
[1727954465779,4.22501,2366.9,2366.4,9.26841]
[1727954466001,6.109002,2366.9,2366.5,4.2256]
[1727954466870,1.883992,2366.9,2366.6,4.22546]
[1727954467375,4.22491,2367.0,2366.6,4.22546]
[1727954467716,4.22491,2367.0,2366.1,4.22635]
[1727954467717,5.02513,2366.5,2366.0,8.45276]
[1727954467874,5.02513,2366.5,2366.0,4.22638]
[1727954467875,4.22583,2366.4,2366.0,4.22638]
[1727954468069,4.22583,2366.4,2365.9,5.04782]
[1727954468369,4.22583,2366.4,2366.0,4.22651]
[1727954468611,4.22551,2366.6,2366.1,4.22636]
[1727954468777,8.45109,2366.6,2366.1,4.22634]
[1727954469104,4.728001,2366.6,2366.1,4.22628]
[1727954469316,0.502491,2366.6,2366.2,4.22617]
[1727954469607,4.22577,2366.5,2366.0,4.22652]
[1727954469821,4.22559,2366.6,2366.1,4.22635]
[1727954470171,4.22559,2366.6,2366.2,4.22608]
[1727954470505,7.22515,2366.8,2366.3,4.99668]
[1727954470742,7.22515,2366.8,2366.1,0.7707]
[1727954470743,4.22555,2366.6,2366.1,0.7707]
[1727954470867,4.22576,2366.5,2366.1,0.7707]
[1727954471072,4.22584,2366.4,2366.1,0.7707]
[1727954472278,4.98755,2366.5,2366.1,0.7707]
[1727954472485,9.21329,2366.5,2366.1,0.7707]
[1727954472827,9.21331,2366.5,2366.1,0.7707]
[1727954473167,4.22587,2366.4,2366.1,0.7707]
[1727954473369,5.147211,2366.4,2366.1,0.7707]
[1727954474010,4.22587,2366.4,2366.1,0.7707]
[1727954474217,0.7618,2366.5,2365.8,0.7526]
[1727954474517,0.7618,2366.5,2365.8,4.97933]
[1727954474518,4.22619,2366.2,2365.8,4.97933]
[1727954475792,4.22619,2366.2,2365.8,9.20614]
[1727954476191,4.22619,2366.2,2365.8,4.97933]
[1727954476590,4.22611,2366.3,2365.9,4.22667]
[1727954477261,4.22625,2366.2,2365.8,4.97949]
[1727954477930,4.22643,2366.1,2365.8,0.7526]
[1727954478083,0.8315,2366.0,2365.6,9.04273692]
[1727954478412,0.8315,2366.0,2365.7,4.22703]
[1727954478729,5.05814,2366.0,2365.6,9.04287692]
[1727954479304,5.05814,2366.0,2365.6,5.03543]
[1727954479501,0.8315,2366.0,2365.6,5.0353]
[1727954479905,5.05814,2366.0,2365.6,0.8082]
[1727954480178,4.22678,2365.9,2365.4,9.03358692]
[1727954480385,5.155382,2365.9,2365.2,5.02654]
[1727954480591,5.155382,2365.9,2365.1,7.44]
[1727954480592,4.22757,2365.5,2365.1,7.44]
[1727954480841,5.00064,2365.2,2364.7,0.7987]
[1727954481039,5.00064,2365.2,2364.6,4.2289]
[1727954481222,5.00064,2365.2,2364.8,4.22868]
[1727954481742,5.00064,2365.2,2364.7,4.22884]
[1727954482127,5.00064,2365.2,2364.8,4.22868]
[1727954482494,0.8927852,2365.7,2365.0,4.00744692]
[1727954482495,0.7726,2365.5,2365.0,4.00744692]
[1727954482716,0.7726,2365.5,2365.2,4.22794]
[1727954482999,0.8927852,2365.7,2365.2,4.22786]
[1727954483000,8.45441,2365.7,2365.2,4.22786]
[1727954483228,0.7726,2365.8,2365.2,5.33833184]
[1727954483539,4.22688,2365.9,2365.5,4.22734]
[1727954483721,4.22692,2365.8,2365.4,9.03364692]
[1727954484146,0.7726,2366.0,2365.4,9.03364692]
[1727954484147,4.99914,2366.0,2365.6,4.22715]